[Event "*** Titled Tuesday Blitz"]
[Site "Chess.com"]
[Date "2020.05.26"]
[Round "8"]
[White "OparinGrigoriy"]
[Black "okriak"]
[Result "1-0"]
[WhiteElo "2900"]
[BlackElo "2723"]
[TimeControl "180+1"]
[EndTime "11:41:40 PDT"]
[Termination "OparinGrigoriy won by resignation"]

1. d4 {[%clk 0:03:00.9]} 1... d5 {[%clk 0:02:59.3]} 2. c4 {[%clk 0:03:00.8]}
2... e6 {[%clk 0:02:59]} 3. Nf3 {[%clk 0:03:01]} 3... c6 {[%clk 0:02:59.1]} 4.
Nbd2 {[%clk 0:02:59.5]} 4... Nf6 {[%clk 0:02:57.3]} 5. g3 {[%clk 0:02:59]} 5...
b6 {[%clk 0:02:52.9]} 6. Bg2 {[%clk 0:02:59.2]} 6... Bb7 {[%clk 0:02:52.9]} 7.
O-O {[%clk 0:02:59.7]} 7... Nbd7 {[%clk 0:02:52.5]} 8. b3 {[%clk 0:03:00.1]}
8... Bd6 {[%clk 0:02:51.7]} 9. Bb2 {[%clk 0:03:00.6]} 9... O-O {[%clk
0:02:51.1]} 10. Qc2 {[%clk 0:03:01.2]} 10... Qe7 {[%clk 0:02:50.2]} 11. e4
{[%clk 0:03:01.2]} 11... dxe4 {[%clk 0:02:48.6]} 12. Ng5 {[%clk 0:02:57.9]}
12... c5 {[%clk 0:02:46.4]} 13. Ndxe4 {[%clk 0:02:55.8]} 13... Nxe4 {[%clk
0:02:41.2]} 14. Nxe4 {[%clk 0:02:56.7]} 14... Rab8 {[%clk 0:02:35]} 15. Rfe1
{[%clk 0:02:41.7]} 15... cxd4 {[%clk 0:02:28.8]} 16. Bxd4 {[%clk 0:02:38.6]}
16... Be5 {[%clk 0:02:26.8]} 17. Rad1 {[%clk 0:02:20.8]} 17... Rfd8 {[%clk
0:02:23.9]} 18. h4 {[%clk 0:02:13.7]} 18... Bxd4 {[%clk 0:02:21.5]} 19. Rxd4
{[%clk 0:02:13.9]} 19... Bxe4 {[%clk 0:02:10.9]} 20. Rdxe4 {[%clk 0:02:14.1]}
20... Nf6 {[%clk 0:02:09.4]} 21. Re5 {[%clk 0:02:14.4]} 21... Qb4 {[%clk
0:01:59.9]} 22. R1e2 {[%clk 0:02:10.4]} 22... Rbc8 {[%clk 0:01:56]} 23. Bf3
{[%clk 0:02:05]} 23... Rc5 {[%clk 0:01:52.8]} 24. R5e3 {[%clk 0:02:04.6]} 24...
Rc7 {[%clk 0:01:47.9]} 25. Rd3 {[%clk 0:01:53.2]} 25... Rcd7 {[%clk 0:01:47.3]}
26. Rxd7 {[%clk 0:01:53]} 26... Rxd7 {[%clk 0:01:47]} 27. Kg2 {[%clk 0:01:53.7]}
27... h5 {[%clk 0:01:44.2]} 28. Qb2 {[%clk 0:01:53.4]} 28... a5 {[%clk
0:01:30.3]} 29. a3 {[%clk 0:01:53.3]} 29... Qd6 {[%clk 0:01:17.9]} 30. b4 {[%clk
0:01:49.8]} 30... axb4 {[%clk 0:01:17.7]} 31. axb4 {[%clk 0:01:50.7]} 31... Qc7
{[%clk 0:01:16]} 32. Rc2 {[%clk 0:01:49.5]} 32... Rd3 {[%clk 0:01:12.3]} 33. c5
{[%clk 0:01:44.7]} 33... bxc5 {[%clk 0:01:03]} 34. Rxc5 {[%clk 0:01:45.6]} 34...
Qd7 {[%clk 0:01:00.3]} 35. b5 {[%clk 0:01:32.5]} 35... Rd2 {[%clk 0:00:52.7]}
36. Rc8+ {[%clk 0:01:27.6]} 36... Kh7 {[%clk 0:00:36.9]} 37. Rc2 {[%clk
0:01:27.2]} 37... Rd3 {[%clk 0:00:26.4]} 38. b6 {[%clk 0:01:19.1]} 38... Rxf3
{[%clk 0:00:26.1]} 39. Kxf3 {[%clk 0:01:20]} 39... Qb7+ {[%clk 0:00:25.8]} 40.
Ke2 {[%clk 0:01:18.9]} 40... Qe4+ {[%clk 0:00:24.3]} 41. Kd2 {[%clk 0:01:12.5]}
41... Qd5+ {[%clk 0:00:23.3]} 42. Kc3 {[%clk 0:01:08.5]} 42... Qa5+ {[%clk
0:00:20.4]} 43. Kd3 {[%clk 0:01:06.2]} 43... Qf5+ {[%clk 0:00:20]} 44. Kc4
{[%clk 0:00:57.2]} 44... Qd5+ {[%clk 0:00:19.8]} 45. Kb4 {[%clk 0:00:56.6]}
45... Qb7 {[%clk 0:00:19.4]} 46. Qd4 {[%clk 0:00:33.6]} 46... Nd5+ {[%clk
0:00:18.3]} 47. Kb5 {[%clk 0:00:34]} 47... Qd7+ {[%clk 0:00:16.3]} 48. Rc6
{[%clk 0:00:34.5]} 48... Nc7+ {[%clk 0:00:16.2]} 49. bxc7 {[%clk 0:00:34.7]}
49... Qxd4 {[%clk 0:00:16.2]} 50. c8=Q {[%clk 0:00:35.6]} 50... Qd3+ {[%clk
0:00:16.4]} 51. Rc4 {[%clk 0:00:31.4]} 51... Qb3+ {[%clk 0:00:16.4]} 52. Kc5
{[%clk 0:00:31.5]} 52... Qa3+ {[%clk 0:00:16.5]} 53. Kd4 {[%clk 0:00:29.1]}
53... Qb2+ {[%clk 0:00:16.4]} 54. Ke3 {[%clk 0:00:28.4]} 54... Qe5+ {[%clk
0:00:16.4]} 55. Re4 {[%clk 0:00:27.6]} 55... Qa1 {[%clk 0:00:14.4]} 56. Qc2
{[%clk 0:00:26.3]} 56... Qh1 {[%clk 0:00:13.3]} 57. Rxe6+ {[%clk 0:00:23.9]}
57... g6 {[%clk 0:00:13.1]} 58. Rc6 {[%clk 0:00:24.1]} 58... Qe1+ {[%clk
0:00:12.1]} 59. Qe2 {[%clk 0:00:21.8]} 59... Qh1 {[%clk 0:00:12.2]} 60. Rc4
{[%clk 0:00:20.7]} 60... Qd5 {[%clk 0:00:11.6]} 61. Qd3 {[%clk 0:00:20.7]} 61...
Qe5+ {[%clk 0:00:11.5]} 62. Kf3 {[%clk 0:00:21.2]} 1-0

[Event "*** Titled Tuesday Blitz"]
[Site "Chess.com"]
[Date "2020.05.26"]
[Round "8"]
[White "S_Kalvaitis"]
[Black "MikeSailer"]
[Result "1-0"]
[WhiteElo "2320"]
[BlackElo "2090"]
[TimeControl "180+1"]
[EndTime "11:41:40 PDT"]
[Termination "S_Kalvaitis won on time"]

1. e4 {[%clk 0:03:00.4]} 1... d5 {[%clk 0:02:59.4]} 2. exd5 {[%clk 0:02:59.6]}
2... Qxd5 {[%clk 0:02:59]} 3. Nc3 {[%clk 0:02:59.5]} 3... Qd6 {[%clk 0:02:52.8]}
4. d4 {[%clk 0:02:55.8]} 4... Nf6 {[%clk 0:02:51.7]} 5. Nf3 {[%clk 0:02:53.3]}
5... c6 {[%clk 0:02:50.5]} 6. g3 {[%clk 0:02:49.7]} 6... Bf5 {[%clk 0:02:49]} 7.
Bf4 {[%clk 0:02:47.8]} 7... Qd8 {[%clk 0:02:45]} 8. Bg2 {[%clk 0:02:45.8]} 8...
e6 {[%clk 0:02:40.8]} 9. O-O {[%clk 0:02:44.9]} 9... Be7 {[%clk 0:02:34.6]} 10.
Nh4 {[%clk 0:02:33.8]} 10... Bg4 {[%clk 0:02:32.8]} 11. Nf3 {[%clk 0:02:06.8]}
11... h6 {[%clk 0:02:24.9]} 12. h3 {[%clk 0:02:05.6]} 12... Bf5 {[%clk
0:02:20.1]} 13. Re1 {[%clk 0:02:04.4]} 13... O-O {[%clk 0:02:12.5]} 14. Ne5
{[%clk 0:02:03.6]} 14... Nbd7 {[%clk 0:02:10.6]} 15. g4 {[%clk 0:02:00]} 15...
Bh7 {[%clk 0:02:10]} 16. Ne2 {[%clk 0:01:55]} 16... Nxe5 {[%clk 0:01:54.2]} 17.
Bxe5 {[%clk 0:01:55.9]} 17... Bd6 {[%clk 0:01:38.8]} 18. Bg3 {[%clk 0:01:47.1]}
18... Bxg3 {[%clk 0:01:36.8]} 19. Nxg3 {[%clk 0:01:48]} 19... Qc7 {[%clk
0:01:34.4]} 20. Qd2 {[%clk 0:01:37.3]} 20... Rad8 {[%clk 0:01:32]} 21. c3 {[%clk
0:01:26.5]} 21... Nd5 {[%clk 0:01:24.1]} 22. g5 {[%clk 0:01:00.9]} 22... Nf4
{[%clk 0:01:06.1]} 23. gxh6 {[%clk 0:00:53.7]} 23... gxh6 {[%clk 0:01:05.4]} 24.
Rad1 {[%clk 0:00:46.4]} 24... Kh8 {[%clk 0:00:52.5]} 25. Qc1 {[%clk 0:00:35.8]}
25... Rg8 {[%clk 0:00:51.1]} 26. Re5 {[%clk 0:00:35.9]} 26... Nxg2 {[%clk
0:00:29.4]} 27. Kxg2 {[%clk 0:00:31.8]} 27... Qe7 {[%clk 0:00:19.3]} 28. Qxh6
{[%clk 0:00:30.9]} 28... Rg6 {[%clk 0:00:16.3]} 29. Qh5 {[%clk 0:00:28.4]} 29...
Rdg8 {[%clk 0:00:15.5]} 30. Rde1 {[%clk 0:00:28.2]} 30... Qf6 {[%clk 0:00:15.2]}
31. Qf3 {[%clk 0:00:23.8]} 31... Qh4 {[%clk 0:00:09]} 32. Rh5 {[%clk 0:00:20.6]}
32... Qf6 {[%clk 0:00:03.9]} 33. Qxf6+ {[%clk 0:00:19.8]} 33... Rxf6 {[%clk
0:00:04.7]} 34. Re4 {[%clk 0:00:19]} 34... Rg7 {[%clk 0:00:04.3]} 35. Reh4
{[%clk 0:00:19.1]} 35... Kg8 {[%clk 0:00:05.2]} 36. Ra5 {[%clk 0:00:16.2]} 36...
a6 {[%clk 0:00:04.9]} 37. Rah5 {[%clk 0:00:16.1]} 37... Rfg6 {[%clk 0:00:04.2]}
38. a4 {[%clk 0:00:13.6]} 38... f5 {[%clk 0:00:03.7]} 39. a5 {[%clk 0:00:11.5]}
39... Rg5 {[%clk 0:00:02.1]} 40. Rh6 {[%clk 0:00:10.6]} 40... R7g6 {[%clk
0:00:01.9]} 41. Rxh7 {[%clk 0:00:10.3]} 41... f4 {[%clk 0:00:02.6]} 42. Rh8+
{[%clk 0:00:10.6]} 42... Kf7 {[%clk 0:00:03.3]} 43. Rxf4+ {[%clk 0:00:09.6]}
43... Kg7 {[%clk 0:00:02.7]} 44. Rhh4 {[%clk 0:00:09.8]} 44... Kg8 {[%clk
0:00:01.1]} 45. Rfg4 {[%clk 0:00:09.8]} 45... Rg7 {[%clk 0:00:01.9]} 46. Rxg5
{[%clk 0:00:10.1]} 46... Rxg5 {[%clk 0:00:02.6]} 47. Rg4 {[%clk 0:00:10.7]}
47... Rxg4 {[%clk 0:00:03.5]} 48. hxg4 {[%clk 0:00:11.6]} 1-0

[Event "*** Titled Tuesday Blitz"]
[Site "Chess.com"]
[Date "2020.05.26"]
[Round "8"]
[White "Bhagya_2312"]
[Black "MacDaddyMac"]
[Result "0-1"]
[WhiteElo "2099"]
[BlackElo "2260"]
[TimeControl "180+1"]
[EndTime "11:41:41 PDT"]
[Termination "MacDaddyMac won on time"]

1. e4 {[%clk 0:03:00.9]} 1... e5 {[%clk 0:02:59.8]} 2. Nf3 {[%clk 0:03:00.1]}
2... Nc6 {[%clk 0:02:59.9]} 3. Bc4 {[%clk 0:02:59.7]} 3... Nf6 {[%clk
0:02:58.7]} 4. d3 {[%clk 0:02:59.1]} 4... Bc5 {[%clk 0:02:57.2]} 5. c3 {[%clk
0:02:57.2]} 5... d6 {[%clk 0:02:56.9]} 6. Bb3 {[%clk 0:02:57.1]} 6... O-O {[%clk
0:02:55.8]} 7. h3 {[%clk 0:02:55.1]} 7... h6 {[%clk 0:02:53.6]} 8. Nbd2 {[%clk
0:02:54.5]} 8... a5 {[%clk 0:02:53.3]} 9. Nf1 {[%clk 0:02:52.3]} 9... Ne7 {[%clk
0:02:52.7]} 10. Ng3 {[%clk 0:02:48.6]} 10... Ng6 {[%clk 0:02:52.9]} 11. d4
{[%clk 0:02:46.3]} 11... Bb6 {[%clk 0:02:49.5]} 12. O-O {[%clk 0:02:33.4]} 12...
Qe8 {[%clk 0:02:08.5]} 13. a4 {[%clk 0:02:01.5]} 13... Bd7 {[%clk 0:01:57]} 14.
Re1 {[%clk 0:01:59.2]} 14... Rd8 {[%clk 0:01:51.2]} 15. Nf5 {[%clk 0:01:53.2]}
15... exd4 {[%clk 0:01:42.3]} 16. N3xd4 {[%clk 0:01:51.2]} 16... Bxd4 {[%clk
0:01:36.2]} 17. Nxd4 {[%clk 0:01:45.5]} 17... Qe5 {[%clk 0:01:28.9]} 18. Nf3
{[%clk 0:01:35.6]} 18... Qh5 {[%clk 0:01:27.3]} 19. Qd3 {[%clk 0:01:21.5]} 19...
Ne5 {[%clk 0:01:12.3]} 20. Nxe5 {[%clk 0:01:20.1]} 20... dxe5 {[%clk 0:01:12.3]}
21. Qg3 {[%clk 0:01:19.9]} 21... Bc6 {[%clk 0:01:10.7]} 22. f3 {[%clk
0:01:17.1]} 22... Kh7 {[%clk 0:01:04.2]} 23. Be3 {[%clk 0:01:13.8]} 23... Rd7
{[%clk 0:00:54.7]} 24. Red1 {[%clk 0:01:09.5]} 24... Rfd8 {[%clk 0:00:54.2]} 25.
Qe1 {[%clk 0:01:08.9]} 25... Qg6 {[%clk 0:00:52.9]} 26. Rxd7 {[%clk 0:00:54.7]}
26... Rxd7 {[%clk 0:00:53.8]} 27. Rd1 {[%clk 0:00:54.4]} 27... Nh5 {[%clk
0:00:52.9]} 28. Rxd7 {[%clk 0:00:34]} 28... Bxd7 {[%clk 0:00:53.8]} 29. Kh2
{[%clk 0:00:25.8]} 29... b6 {[%clk 0:00:39.5]} 30. g3 {[%clk 0:00:16.4]} 30...
Kg8 {[%clk 0:00:22.2]} 31. Bf2 {[%clk 0:00:15.9]} 31... Qf6 {[%clk 0:00:19.2]}
32. Qe3 {[%clk 0:00:15.7]} 32... g5 {[%clk 0:00:16.1]} 33. Be1 {[%clk
0:00:14.8]} 33... Kg7 {[%clk 0:00:15.3]} 34. Bd2 {[%clk 0:00:14.8]} 34... Kg8
{[%clk 0:00:15.3]} 35. Qe2 {[%clk 0:00:13.5]} 35... Ng7 {[%clk 0:00:15.3]} 36.
Kg2 {[%clk 0:00:08.2]} 36... Ne6 {[%clk 0:00:15.3]} 37. Qc4 {[%clk 0:00:07.6]}
37... Nc5 {[%clk 0:00:14.4]} 38. Bc2 {[%clk 0:00:06.8]} 38... Be6 {[%clk
0:00:13.9]} 39. Qe2 {[%clk 0:00:05.8]} 39... Bd7 {[%clk 0:00:14]} 40. b3 {[%clk
0:00:05.3]} 40... Qe6 {[%clk 0:00:14.2]} 41. c4 {[%clk 0:00:04.7]} 41... Qxh3+
{[%clk 0:00:14.1]} 42. Kf2 {[%clk 0:00:03.6]} 42... Qh2+ {[%clk 0:00:14]} 43.
Ke3 {[%clk 0:00:03.1]} 43... Qg1+ {[%clk 0:00:12]} 44. Qf2 {[%clk 0:00:02.4]}
44... Qxf2+ {[%clk 0:00:12.1]} 45. Kxf2 {[%clk 0:00:02.3]} 45... Ne6 {[%clk
0:00:13]} 46. Ke3 {[%clk 0:00:01.9]} 46... f6 {[%clk 0:00:13.2]} 47. Bd1 {[%clk
0:00:02.6]} 47... Kf7 {[%clk 0:00:13.5]} 48. Bc3 {[%clk 0:00:02.8]} 48... c5
{[%clk 0:00:12.7]} 49. Be2 {[%clk 0:00:02.3]} 49... Nd4 {[%clk 0:00:12.2]} 50.
Bd1 {[%clk 0:00:01.9]} 50... Bh3 {[%clk 0:00:12]} 51. f4 {[%clk 0:00:01.9]}
51... gxf4+ {[%clk 0:00:11.8]} 52. gxf4 {[%clk 0:00:02.3]} 52... Kg6 {[%clk
0:00:12.1]} 53. f5+ {[%clk 0:00:02.2]} 53... Kg5 {[%clk 0:00:12.3]} 54. Bd2
{[%clk 0:00:01.9]} 54... Bg4 {[%clk 0:00:12.5]} 55. Kf2+ {[%clk 0:00:01.8]}
55... Kh5 {[%clk 0:00:12.7]} 0-1

[Event "*** Titled Tuesday Blitz"]
[Site "Chess.com"]
[Date "2020.05.26"]
[Round "8"]
[White "wonderfultime"]
[Black "Kirill_Klukin"]
[Result "0-1"]
[WhiteElo "2939"]
[BlackElo "2712"]
[TimeControl "180+1"]
[EndTime "11:41:42 PDT"]
[Termination "Kirill_Klukin won on time"]

1. d4 {[%clk 0:03:00.9]} 1... Nf6 {[%clk 0:02:58.8]} 2. Nf3 {[%clk 0:03:01.2]}
2... g6 {[%clk 0:02:57.9]} 3. Bg5 {[%clk 0:03:01.5]} 3... Bg7 {[%clk 0:02:57.9]}
4. Nbd2 {[%clk 0:03:02]} 4... d5 {[%clk 0:02:58.2]} 5. c3 {[%clk 0:03:02.6]}
5... a6 {[%clk 0:02:58.2]} 6. e3 {[%clk 0:03:03]} 6... b5 {[%clk 0:02:58.3]} 7.
Bd3 {[%clk 0:03:03.3]} 7... Bb7 {[%clk 0:02:57.4]} 8. a4 {[%clk 0:03:02.4]} 8...
bxa4 {[%clk 0:02:51.7]} 9. Qxa4+ {[%clk 0:03:03.3]} 9... Nbd7 {[%clk 0:02:51.3]}
10. O-O {[%clk 0:03:00.4]} 10... O-O {[%clk 0:02:50.8]} 11. Nb3 {[%clk 0:02:58]}
11... h6 {[%clk 0:02:43]} 12. Bh4 {[%clk 0:02:52.7]} 12... Qc8 {[%clk
0:02:35.9]} 13. Na5 {[%clk 0:02:50.5]} 13... c5 {[%clk 0:02:31.4]} 14. Qa3
{[%clk 0:02:49.6]} 14... c4 {[%clk 0:02:27.6]} 15. Bc2 {[%clk 0:02:47.3]} 15...
e6 {[%clk 0:02:27.6]} 16. h3 {[%clk 0:02:35.7]} 16... Re8 {[%clk 0:02:27]} 17.
Bg3 {[%clk 0:02:35.5]} 17... Bf8 {[%clk 0:02:26.1]} 18. Qa2 {[%clk 0:02:35.9]}
18... Nb6 {[%clk 0:02:10.4]} 19. Ne5 {[%clk 0:02:31.7]} 19... Nfd7 {[%clk
0:02:10]} 20. f4 {[%clk 0:02:25.2]} 20... Nxe5 {[%clk 0:02:09.2]} 21. fxe5
{[%clk 0:02:24.5]} 21... Qc7 {[%clk 0:02:06.6]} 22. Rf3 {[%clk 0:02:20.4]} 22...
Bg7 {[%clk 0:01:47.3]} 23. Raf1 {[%clk 0:02:20.9]} 23... Rf8 {[%clk 0:01:47.3]}
24. Bh4 {[%clk 0:02:12.5]} 24... Nd7 {[%clk 0:01:39.7]} 25. Be7 {[%clk
0:02:12.2]} 25... Nxe5 {[%clk 0:01:31.7]} 26. Bxf8 {[%clk 0:01:58.4]} 26...
Nxf3+ {[%clk 0:01:31.5]} 27. Rxf3 {[%clk 0:01:59.3]} 27... Rxf8 {[%clk
0:01:31.3]} 28. Nxb7 {[%clk 0:01:50.3]} 28... Qxb7 {[%clk 0:01:31.1]} 29. Rf2
{[%clk 0:01:47.2]} 29... Rb8 {[%clk 0:01:29.8]} 30. Bd1 {[%clk 0:01:45.5]} 30...
Bf8 {[%clk 0:01:29.1]} 31. Bf3 {[%clk 0:01:43.2]} 31... Qb6 {[%clk 0:01:25]} 32.
e4 {[%clk 0:01:42.1]} 32... Rd8 {[%clk 0:01:19.5]} 33. Qa4 {[%clk 0:01:36.3]}
33... Qb5 {[%clk 0:01:18.2]} 34. Qc2 {[%clk 0:01:34.9]} 34... a5 {[%clk
0:01:17]} 35. h4 {[%clk 0:01:32.2]} 35... dxe4 {[%clk 0:01:07.5]} 36. Qxe4
{[%clk 0:01:30.7]} 36... h5 {[%clk 0:00:53.8]} 37. Qf4 {[%clk 0:01:30.2]} 37...
Bd6 {[%clk 0:00:46]} 38. Qf6 {[%clk 0:01:30.4]} 38... Qd7 {[%clk 0:00:45.7]} 39.
Qg5 {[%clk 0:01:21.1]} 39... Qe7 {[%clk 0:00:43.4]} 40. Qxe7 {[%clk 0:00:53]}
40... Bxe7 {[%clk 0:00:44.3]} 41. g3 {[%clk 0:00:53.9]} 41... e5 {[%clk
0:00:44.2]} 42. Be2 {[%clk 0:00:45]} 42... exd4 {[%clk 0:00:28.9]} 43. Bxc4
{[%clk 0:00:44.9]} 43... dxc3 {[%clk 0:00:29.2]} 44. Rxf7 {[%clk 0:00:36.6]}
44... Bc5+ {[%clk 0:00:28]} 45. Kh1 {[%clk 0:00:35.8]} 45... Rd4 {[%clk
0:00:14.2]} 46. Ba2 {[%clk 0:00:27.8]} 46... cxb2 {[%clk 0:00:07.5]} 47. Rc7+
{[%clk 0:00:15.9]} 47... Kf8 {[%clk 0:00:07.8]} 48. Rxc5 {[%clk 0:00:15]} 48...
Ra4 {[%clk 0:00:07.9]} 49. Rc8+ {[%clk 0:00:06.1]} 49... Ke7 {[%clk 0:00:07.8]}
50. Rc7+ {[%clk 0:00:06.3]} 50... Kd6 {[%clk 0:00:07.2]} 0-1

[Event "*** Titled Tuesday Blitz"]
[Site "Chess.com"]
[Date "2020.05.26"]
[Round "8"]
[White "albi1999"]
[Black "ShahMatKanal"]
[Result "1-0"]
[WhiteElo "2615"]
[BlackElo "2465"]
[TimeControl "180+1"]
[EndTime "11:41:42 PDT"]
[Termination "albi1999 won on time"]

1. d4 {[%clk 0:03:00.9]} 1... d5 {[%clk 0:02:55.1]} 2. Nf3 {[%clk 0:03:00.3]}
2... Nf6 {[%clk 0:02:54.1]} 3. c4 {[%clk 0:02:55.4]} 3... c6 {[%clk 0:02:53.6]}
4. Qb3 {[%clk 0:02:45.9]} 4... a6 {[%clk 0:02:49.4]} 5. g3 {[%clk 0:02:42.6]}
5... e6 {[%clk 0:02:40]} 6. Bg2 {[%clk 0:02:42]} 6... b5 {[%clk 0:02:39.9]} 7.
cxd5 {[%clk 0:02:31.1]} 7... cxd5 {[%clk 0:02:38.8]} 8. O-O {[%clk 0:02:32]}
8... Bd6 {[%clk 0:02:37.6]} 9. Bf4 {[%clk 0:02:21.5]} 9... Bxf4 {[%clk
0:02:32.7]} 10. gxf4 {[%clk 0:02:22.4]} 10... O-O {[%clk 0:02:30.8]} 11. Nc3
{[%clk 0:02:14.8]} 11... Bd7 {[%clk 0:02:13.2]} 12. Rac1 {[%clk 0:02:11.7]}
12... Nc6 {[%clk 0:02:11.1]} 13. e3 {[%clk 0:02:10.5]} 13... Qe7 {[%clk
0:02:03.1]} 14. Qd1 {[%clk 0:02:02.1]} 14... Rfc8 {[%clk 0:01:59.8]} 15. Ne5
{[%clk 0:02:00.7]} 15... Be8 {[%clk 0:01:53.1]} 16. Qe2 {[%clk 0:01:57.7]} 16...
g6 {[%clk 0:01:50]} 17. Nb1 {[%clk 0:01:55.6]} 17... Na5 {[%clk 0:01:46.1]} 18.
b3 {[%clk 0:01:52.4]} 18... Rc7 {[%clk 0:01:36.4]} 19. Qd2 {[%clk 0:01:48.6]}
19... Rac8 {[%clk 0:01:31.3]} 20. Rc5 {[%clk 0:01:42]} 20... Nb7 {[%clk
0:01:28.3]} 21. Rxc7 {[%clk 0:01:23.4]} 21... Qxc7 {[%clk 0:01:27.6]} 22. Nd3
{[%clk 0:01:23.8]} 22... Qc2 {[%clk 0:01:18.2]} 23. Rc1 {[%clk 0:01:22.7]} 23...
Qxd2 {[%clk 0:01:18.1]} 24. Nxd2 {[%clk 0:01:23.6]} 24... Rxc1+ {[%clk
0:01:18.2]} 25. Nxc1 {[%clk 0:01:24.5]} 25... Nd7 {[%clk 0:01:00.8]} 26. Nd3
{[%clk 0:01:21.3]} 26... Kf8 {[%clk 0:00:59.4]} 27. Ne5 {[%clk 0:01:17.3]} 27...
f6 {[%clk 0:00:54.5]} 28. Nxd7+ {[%clk 0:01:07.8]} 28... Bxd7 {[%clk 0:00:52.9]}
29. a3 {[%clk 0:01:04.6]} 29... Ke7 {[%clk 0:00:48.4]} 30. Kf1 {[%clk
0:01:03.3]} 30... Kd6 {[%clk 0:00:47.9]} 31. Ke2 {[%clk 0:01:02.9]} 31... Nd8
{[%clk 0:00:45.6]} 32. Kd3 {[%clk 0:01:01.2]} 32... Nc6 {[%clk 0:00:45.8]} 33.
Kc3 {[%clk 0:00:59.8]} 33... e5 {[%clk 0:00:37]} 34. fxe5+ {[%clk 0:00:59.1]}
34... fxe5 {[%clk 0:00:37.9]} 35. Nf3 {[%clk 0:00:56.6]} 35... e4 {[%clk
0:00:34.4]} 36. Ng5 {[%clk 0:00:56.2]} 36... h5 {[%clk 0:00:30.6]} 37. f3 {[%clk
0:00:47.9]} 37... exf3 {[%clk 0:00:28.5]} 38. Bxf3 {[%clk 0:00:48.8]} 38... Be8
{[%clk 0:00:18.4]} 39. Be2 {[%clk 0:00:43.7]} 39... Nd8 {[%clk 0:00:14.6]} 40.
e4 {[%clk 0:00:39.6]} 40... dxe4 {[%clk 0:00:14.2]} 41. Nxe4+ {[%clk 0:00:40.5]}
41... Kc7 {[%clk 0:00:12]} 42. d5 {[%clk 0:00:38.5]} 42... Bf7 {[%clk
0:00:10.5]} 43. Kd4 {[%clk 0:00:38.2]} 43... Nb7 {[%clk 0:00:09.2]} 44. Ke5
{[%clk 0:00:37]} 44... Na5 {[%clk 0:00:07.7]} 45. Bd1 {[%clk 0:00:36.3]} 45...
Nb7 {[%clk 0:00:03.8]} 46. b4 {[%clk 0:00:32.9]} 46... a5 {[%clk 0:00:03.5]} 47.
Be2 {[%clk 0:00:31.2]} 47... axb4 {[%clk 0:00:03.3]} 48. axb4 {[%clk 0:00:32.1]}
48... Be8 {[%clk 0:00:02.4]} 49. Bf1 {[%clk 0:00:28.9]} 49... Kd8 {[%clk
0:00:01.5]} 50. h4 {[%clk 0:00:24.7]} 50... Kc7 {[%clk 0:00:01.5]} 51. d6+
{[%clk 0:00:24.1]} 51... Kd8 {[%clk 0:00:01.5]} 52. Nc3 {[%clk 0:00:20.8]} 52...
Bc6 {[%clk 0:00:01.4]} 53. Nxb5 {[%clk 0:00:18.9]} 53... Bxb5 {[%clk 0:00:01.3]}
54. Bxb5 {[%clk 0:00:19.8]} 1-0

[Event "*** Titled Tuesday Blitz"]
[Site "Chess.com"]
[Date "2020.05.26"]
[Round "8"]
[White "Baronessa08"]
[Black "ferdipy"]
[Result "0-1"]
[WhiteElo "2391"]
[BlackElo "2277"]
[TimeControl "180+1"]
[EndTime "11:41:42 PDT"]
[Termination "ferdipy won by resignation"]

1. g3 {[%clk 0:02:57.9]} 1... Nf6 {[%clk 0:02:57.3]} 2. Bg2 {[%clk 0:02:56.6]}
2... e6 {[%clk 0:02:57.5]} 3. Nf3 {[%clk 0:02:55.3]} 3... d5 {[%clk 0:02:58.4]}
4. O-O {[%clk 0:02:55]} 4... Be7 {[%clk 0:02:39]} 5. b3 {[%clk 0:02:54.4]} 5...
O-O {[%clk 0:02:39]} 6. Bb2 {[%clk 0:02:54.6]} 6... c6 {[%clk 0:02:39.9]} 7. c4
{[%clk 0:02:54.3]} 7... b5 {[%clk 0:02:37.5]} 8. Nc3 {[%clk 0:02:47.9]} 8...
bxc4 {[%clk 0:01:58.4]} 9. bxc4 {[%clk 0:02:47.7]} 9... Ba6 {[%clk 0:01:57.4]}
10. Ne5 {[%clk 0:02:35.1]} 10... Qc7 {[%clk 0:01:45.4]} 11. d4 {[%clk
0:02:17.2]} 11... Nbd7 {[%clk 0:01:43.6]} 12. Nxd7 {[%clk 0:02:11.5]} 12... Qxd7
{[%clk 0:01:35.2]} 13. c5 {[%clk 0:02:03.5]} 13... Rab8 {[%clk 0:01:30.4]} 14.
Rb1 {[%clk 0:02:01.1]} 14... Rb7 {[%clk 0:01:17.6]} 15. Qa4 {[%clk 0:01:58]}
15... Bc4 {[%clk 0:01:16.9]} 16. Ba1 {[%clk 0:01:57.4]} 16... Rfb8 {[%clk
0:01:15.4]} 17. Rxb7 {[%clk 0:01:52.5]} 17... Rxb7 {[%clk 0:01:16.3]} 18. Rc1
{[%clk 0:01:50.9]} 18... Qc7 {[%clk 0:01:07.5]} 19. e3 {[%clk 0:01:46.7]} 19...
Nd7 {[%clk 0:01:06]} 20. Bf1 {[%clk 0:01:45]} 20... Bxf1 {[%clk 0:01:01.2]} 21.
Rxf1 {[%clk 0:01:43.5]} 21... f5 {[%clk 0:00:56.1]} 22. Rb1 {[%clk 0:01:40.6]}
22... Rxb1+ {[%clk 0:00:47.9]} 23. Nxb1 {[%clk 0:01:41.5]} 23... Nf6 {[%clk
0:00:48.5]} 24. Bc3 {[%clk 0:01:39.5]} 24... Ne4 {[%clk 0:00:47.4]} 25. Bb4
{[%clk 0:01:37.1]} 25... h5 {[%clk 0:00:37.6]} 26. Qa6 {[%clk 0:01:35.3]} 26...
Bd8 {[%clk 0:00:34.1]} 27. Nd2 {[%clk 0:01:30.5]} 27... Ng5 {[%clk 0:00:32.3]}
28. Kg2 {[%clk 0:01:23.3]} 28... h4 {[%clk 0:00:32]} 29. gxh4 {[%clk 0:01:09.7]}
29... Nf7 {[%clk 0:00:30.1]} 30. Nb3 {[%clk 0:01:04.9]} 30... Nh6 {[%clk
0:00:20.4]} 31. Ba5 {[%clk 0:00:59.3]} 31... Qd7 {[%clk 0:00:17.5]} 32. Bxd8
{[%clk 0:00:51.8]} 32... Qxd8 {[%clk 0:00:18.4]} 33. Qxc6 {[%clk 0:00:51.8]}
33... Qxh4 {[%clk 0:00:17.7]} 34. Qxe6+ {[%clk 0:00:51.7]} 34... Kh7 {[%clk
0:00:18.4]} 35. h3 {[%clk 0:00:42.8]} 35... Qg5+ {[%clk 0:00:17.7]} 36. Kf1
{[%clk 0:00:37]} 36... f4 {[%clk 0:00:17.6]} 37. exf4 {[%clk 0:00:33.6]} 37...
Qxf4 {[%clk 0:00:18.5]} 38. Qxd5 {[%clk 0:00:32.9]} 38... Nf5 {[%clk 0:00:18.7]}
39. Qe5 {[%clk 0:00:28.2]} 39... Qg5 {[%clk 0:00:15.4]} 40. Qe4 {[%clk
0:00:21.1]} 40... Qg6 {[%clk 0:00:13.5]} 41. Qg4 {[%clk 0:00:17.7]} 41... Qf6
{[%clk 0:00:13.4]} 42. Kg1 {[%clk 0:00:16]} 42... g6 {[%clk 0:00:12.3]} 43. d5
{[%clk 0:00:13.3]} 43... Nh4 {[%clk 0:00:10.8]} 44. d6 {[%clk 0:00:13.1]} 44...
Nf3+ {[%clk 0:00:11]} 45. Kg2 {[%clk 0:00:12.4]} 45... Ne1+ {[%clk 0:00:11.3]}
46. Kf1 {[%clk 0:00:12.3]} 46... Nc2 {[%clk 0:00:11.9]} 47. Qd7+ {[%clk
0:00:10.6]} 47... Kh6 {[%clk 0:00:11.9]} 48. Qe7 {[%clk 0:00:09.9]} 48... Qf3
{[%clk 0:00:10.2]} 49. d7 {[%clk 0:00:05.6]} 49... Qh1+ {[%clk 0:00:09.7]} 50.
Ke2 {[%clk 0:00:05.9]} 50... Qe1+ {[%clk 0:00:10.6]} 51. Kd3 {[%clk 0:00:04.5]}
51... Qxe7 {[%clk 0:00:11.5]} 52. c6 {[%clk 0:00:04.7]} 52... Qd6+ {[%clk
0:00:11.3]} 53. Kxc2 {[%clk 0:00:03.6]} 53... Qxc6+ {[%clk 0:00:11.9]} 0-1